lending/lending_fUSD_20240512
["ID","MTS","AMOUNT","RATE_DAILY","PERIOD"]
[326890363,1715545832316,-814.4,0.00011242,2]
[326890365,1715545832325,-814.4,0.00011245,2]
[326890367,1715545832335,-814.4,0.00011248,2]
[326890368,1715545832344,-814.4,0.00011251,2]
[326890370,1715545832354,-814.4,0.00011254,2]
[326890372,1715545832364,-814.4,0.00011257,2]
[326890373,1715545832374,-814.4,0.00011259,2]
[326890374,1715545832384,-814.4,0.00011262,2]
[326890375,1715545832393,-814.4,0.00011265,2]
[326890376,1715545832402,-814.4,0.00011268,2]
[326890377,1715545832411,-814.4,0.00011271,2]
[326890378,1715545832421,-2175.808,0.00011288,2]
[326890379,1715545832430,-500.0,0.00011328,2]
[326890380,1715545832439,-500.0,0.00011328,2]
[326890381,1715545832448,-500.0,0.00011328,2]
[326890382,1715545832458,-500.0,0.00011328,2]
[326890383,1715545832467,-500.0,0.00011328,2]
[326890384,1715545832476,-500.0,0.00011328,2]
[326890385,1715545832484,-500.0,0.00011328,2]
[326890386,1715545832494,-351.36,0.00011328,2]
[326890387,1715545832504,-500.0,0.00011328,2]
[326890388,1715545832514,-500.0,0.00011328,2]
[326890389,1715545832523,-336.22,0.00011328,2]
[326890390,1715545832534,-500.0,0.00011328,2]
[326890391,1715545832544,-500.0,0.00011328,2]
[326890392,1715545832553,-500.0,0.00011328,2]
[326890393,1715545832562,-500.0,0.00011328,2]
[326890394,1715545832573,-500.0,0.00011328,2]
[326890395,1715545832582,-500.0,0.00011328,2]
[326890396,1715545832591,-500.0,0.00011328,2]
[326890397,1715545832600,-500.0,0.00011328,2]
[326890398,1715545832609,-500.0,0.00011328,2]
[326890399,1715545832619,-564.61,0.00011328,2]
[326890400,1715545832629,-978.18796677,0.00011556,2]
[326890401,1715545832638,-978.18796677,0.00011556,2]
[326890402,1715545832647,-150.0,0.00011578,2]
[326890403,1715545832657,-150.0,0.00011578,2]
[326890404,1715545832667,-150.0,0.00011578,2]
[326890405,1715545832679,-150.0,0.00011578,2]
[326890406,1715545832690,-253.13001085,0.00011664,2]
[326890407,1715545832699,-150.0,0.00011778,2]
[326890408,1715545832708,-3503.24646015,0.00011829,2]
[326890409,1715545832718,-1563.06983317,0.00011866,2]
[326890410,1715545832728,-397.0,0.00011926,2]
[326890411,1715545832738,-210.0,0.00011936,2]
[326890412,1715545832748,-1000.0,0.00012,2]
[326890413,1715545832758,-1000.0,0.00012004,2]
[326890414,1715545832767,-150.0,0.00012053,2]
[326890415,1715545832777,-300.0,0.00012053,2]
[326890416,1715545832787,-150.0,0.00012053,2]
[326890417,1715545832796,-150.0,0.00012056,2]
[326890418,1715545832806,-150.0,0.00012058,2]
[326890419,1715545832815,-300.0,0.00012058,2]
[326890420,1715545832825,-150.0,0.00012062,2]
[326890421,1715545832835,-150.0,0.00012064,2]
[326890422,1715545832845,-1500.0,0.00012065,2]
[326890423,1715545832854,-150.0,0.00012065,2]
[326890424,1715545832865,-150.0,0.00012066,2]
[326890425,1715545832875,-1500.0,0.00012067,2]
[326890426,1715545832884,-1500.0,0.00012069,2]
[326890427,1715545832894,-150.0,0.0001207,2]
[326890428,1715545832904,-150.0,0.00012073,2]
[326890429,1715545832914,-150.0,0.00012077,2]
[326890430,1715545832924,-150.0,0.00012077,2]
[326890431,1715545832934,-1500.0,0.0001208,2]
[326890432,1715545832944,-1124.03057421,0.0001208,2]
[326890433,1715545832953,-150.0,0.00012082,2]
[326890434,1715545832963,-150.0,0.00012085,2]
[326890435,1715545832973,-1500.0,0.0001209,2]
[326890436,1715545832982,-1500.0,0.0001209,2]
[326890437,1715545832992,-150.0,0.00012091,2]
[326890438,1715545833002,-150.0,0.00012093,2]
[326890439,1715545833012,-150.0,0.00012093,2]
[326890440,1715545833021,-1500.0,0.00012096,2]
[326890441,1715545833031,-300.0,0.00012097,2]
[326890442,1715545833040,-150.0,0.00012099,2]
[326890443,1715545833050,-150.0,0.00012099,2]
[326890444,1715545833060,-150.0,0.000121,2]
[326890445,1715545833069,-1500.0,0.00012104,2]
[326890446,1715545833079,-1124.03057421,0.00012105,2]
[326890447,1715545833089,-150.0,0.00012106,2]
[326890448,1715545833098,-150.0,0.00012107,2]
[326890449,1715545833108,-1500.0,0.00012108,2]
[326890450,1715545833118,-150.0,0.00012108,2]
[326890451,1715545833129,-150.0,0.00012108,2]
[326890452,1715545833140,-150.0,0.00012111,2]
[326890453,1715545833151,-10570.089778,0.00012117,2]
[326890454,1715545833160,-1189.603776,0.00012117,2]
[326890455,1715545833170,-150.0,0.00012117,2]
[326890456,1715545833179,-150.0,0.00012119,2]
[326890457,1715545833190,-150.0,0.00012121,2]
[326890458,1715545833200,-150.0,0.00012123,2]
[326890459,1715545833209,-150.0,0.00012124,2]
[326890460,1715545833222,-1500.0,0.00012124,2]
[326890461,1715545833231,-150.0,0.00012125,2]
[326890462,1715545833241,-300.0,0.00012125,2]
[326890463,1715545833251,-150.0,0.00012126,2]
[326890464,1715545833260,-150.0,0.00012127,2]
[326890465,1715545833269,-150.0,0.00012128,2]
[326890466,1715545833279,-1124.03057421,0.0001213,2]
[326890467,1715545833289,-150.0,0.00012131,2]
[326890468,1715545833299,-150.0,0.00012131,2]
[326890469,1715545833308,-150.0,0.00012132,2]
[326890470,1715545833317,-150.0,0.00012133,2]
[326890471,1715545833644,-1500.0,0.00012135,2]
[326890472,1715545833654,-150.0,0.00012138,2]
[326890473,1715545833665,-150.0,0.00012143,2]
[326890474,1715545833676,-1500.0,0.00012144,2]
[326890475,1715545833686,-1500.0,0.00012145,2]
[326890476,1715545833695,-150.0,0.00012145,2]
[326890477,1715545833705,-150.0,0.00012145,2]
[326890478,1715545833714,-213.07,0.00012145,2]
[326890479,1715545833723,-150.0,0.00012148,2]
[326890480,1715545833734,-150.0,0.00012151,2]
[326890481,1715545833743,-150.0,0.00012153,2]
[326890482,1715545833753,-150.0,0.00012154,2]
[326890483,1715545833763,-150.0,0.00012154,2]
[326890484,1715545833772,-300.0,0.00012155,2]
[326890485,1715545833782,-1124.03057421,0.00012155,2]
[326890486,1715545833792,-20310.84352677,0.00012155,2]
[326890487,1715545833802,-150.0,0.00012156,2]
[326890488,1715545833811,-36331.75488776,0.0001216,2]
[326890489,1715545833821,-1961.15219,0.0001216,2]
[326890490,1715545833831,-1500.0,0.00012161,2]
[326890491,1715545833841,-150.0,0.00012161,2]
[326890492,1715545833850,-1500.0,0.00012162,2]
[326890493,1715545833860,-150.0,0.00012162,2]
[326890494,1715545833870,-1500.0,0.00012164,2]
[326890495,1715545833880,-213.07,0.0001217,2]
[326890496,1715545833890,-150.0,0.00012175,2]
[326890497,1715545833900,-196.8758743,0.00012179,2]
[326890498,1715545833910,-61342.60148006,0.0001218,2]
[326890499,1715545833947,-30832.3344385,0.0001218,2]
[326890500,1715545833958,-397.56791311,0.0001218,2]
[326890501,1715545833969,-8399.83035407,0.0001218,2]
[326890502,1715545833981,-1275.75232492,0.0001218,2]
[326890503,1715545833992,-408.75323981,0.0001218,2]
[326890504,1715545834003,-709.3596694,0.0001218,2]
[326890505,1715545834015,-30789.59058013,0.0001218,2]
[326890506,1715545834024,-479.2358,0.0001218,2]
[326890507,1715545834033,-16228.33192606,0.0001218,2]
[326890508,1715545834049,-564.72049553,0.0001218,2]
[326890509,1715545834060,-261.15578167,0.0001218,2]
[326890510,1715545834072,-1361.03592768,0.0001218,2]
[326890511,1715545834102,-580.55865504,0.0001218,2]
[326890512,1715545834114,-3731.26025677,0.0001218,2]
[326890513,1715545834126,-31631.61005725,0.0001218,2]
[326890514,1715545834137,-1000.0,0.0001218,2]
[326890515,1715545834150,-7500.0,0.0001218,2]
[326890516,1715545834159,-500.0,0.0001218,2]
[326890517,1715545834169,-1920.3117388,0.0001218,2]
[326890518,1715545834179,-212.19434734,0.0001218,2]
[326890519,1715545834190,-232.9531,0.0001218,2]
[326890520,1715545834199,-161.6624709,0.0001218,2]
[326890521,1715545834208,-171.47681867,0.0001218,2]
[326890522,1715545834219,-1685.43205006,0.0001218,2]
[326890523,1715545834228,-202.20660029,0.0001218,2]
[326890524,1715545834238,-1124.03057421,0.0001218,2]
[326890525,1715545834247,-758.38450594,0.0001218,2]
[326890526,1715545834256,-194.26468822,0.0001218,2]
[326890527,1715545834266,-201.28727559,0.0001218,2]
[326890528,1715545834275,-302.49127361,0.00012181,2]
[326890529,1715545834284,-1920.31173873,0.00012184,2]
[326890530,1715545834294,-150.0,0.00012186,2]
[326890531,1715545834303,-1920.31173873,0.00012189,2]
[326890532,1715545834313,-302.80462483,0.00012191,2]
[326890533,1715545834323,-150.0,0.00012192,2]
[326890534,1715545834332,-1500.0,0.00012193,2]
[326890535,1715545834342,-1920.31173873,0.00012193,2]
[326890536,1715545834352,-150.0,0.00012195,2]
[326890537,1715545834362,-150.0,0.00012197,2]
[326890538,1715545834371,-1920.31173873,0.00012197,2]
[326890539,1715545834382,-150.0,0.00012199,2]
[326890540,1715545834391,-1000.0,0.000122,2]
[326890541,1715545834401,-1920.31173873,0.00012202,2]
[326890542,1715545834410,-177.09693247,0.00012204,2]
[326890543,1715545834419,-1500.0,0.00012204,2]
[326890544,1715545834429,-1685.43205005,0.00012204,2]
[326890545,1715545834438,-758.38450593,0.00012204,2]
[326890546,1715545834448,-150.0,0.00012205,2]
[326890547,1715545834457,-1920.31173873,0.00012206,2]
[326890548,1715545834467,-281.73754962,0.00012207,2]
[326890549,1715545834476,-150.0,0.00012209,2]
[326890550,1715545834485,-1920.31173873,0.00012211,2]
[326890551,1715545834495,-811.0,0.00012212,2]
[326890552,1715545834504,-150.0,0.00012212,2]
[326890553,1715545834513,-200.0,0.00012214,2]
[326890554,1715545834523,-1920.31173873,0.00012215,2]
[326890555,1715545834532,-1500.0,0.00012216,2]
[326890556,1715545834542,-1500.0,0.00012216,2]
[326890557,1715545834551,-1920.31173873,0.00012219,2]
[326890558,1715545834561,-1500.0,0.00012221,2]
[326890559,1715545834570,-300.0,0.00012222,2]
[326890560,1715545834580,-150.0,0.00012222,2]
[326890561,1715545834590,-150.0,0.00012222,2]
[326890562,1715545834600,-300.0,0.00012223,2]
[326890563,1715545834609,-1920.31173873,0.00012224,2]
[326890564,1715545834619,-150.0,0.00012224,2]
[326890565,1715545834629,-1920.31173873,0.00012228,2]
[326890566,1715545834639,-212.19434734,0.00012228,2]
[326890567,1715545834649,-161.6624709,0.00012228,2]
[326890568,1715545834658,-150.0,0.00012228,2]
[326890569,1715545834668,-1685.43205005,0.00012228,2]
[326890570,1715545834677,-758.38450593,0.00012228,2]
[326890571,1715545834687,-194.26468821,0.00012228,2]
[326890572,1715545834697,-201.28727559,0.00012228,2]
[326890573,1715545834707,-200.0,0.00012228,2]
[326890574,1715545834717,-500.0,0.00012229,2]
[326890575,1715545834726,-730.75772619,0.0001223,2]
[326890576,1715545834736,-1500.0,0.00012233,2]
[326890577,1715545834747,-150.0,0.00012233,2]
[326890578,1715545834757,-150.0,0.00012234,2]
[326890579,1715545834767,-150.0,0.00012238,2]
[326890580,1715545834777,-150.0,0.0001224,2]
[326890581,1715545834788,-150.0,0.00012241,2]
[326890582,1715545834799,-1000.0,0.00012244,2]
[326890583,1715545834810,-150.0,0.00012244,2]
[326890584,1715545834819,-150.0,0.00012249,2]
[326890585,1715545834829,-150.0,0.00012253,2]
[326890586,1715545834839,-150.0,0.00012253,2]
[326890587,1715545834850,-150.0,0.00012254,2]
[326890588,1715545834860,-150.0,0.00012254,2]
[326890589,1715545834870,-150.0,0.00012256,2]
[326890590,1715545834881,-150.0,0.00012261,2]
[326890591,1715545834890,-150.0,0.00012266,2]
[326890592,1715545834900,-1500.0,0.00012267,2]
[326890593,1715545834910,-183.05942095,0.00012268,2]
[326890594,1715545834920,-10570.089778,0.00012268,2]
[326890595,1715545834929,-1189.603776,0.00012268,2]
[326890596,1715545834939,-1500.0,0.00012269,2]
[326890597,1715545834948,-213.07,0.0001227,2]
[326890598,1715545834957,-213.07,0.0001227,2]
[326890599,1715545834967,-151.55,0.0001227,2]
[326890600,1715545834976,-151.55,0.0001227,2]
[326890601,1715545834986,-151.55,0.0001227,2]
[326890602,1715545834995,-151.55,0.0001227,2]
[326890603,1715545835005,-151.55,0.0001227,2]
[326890604,1715545835015,-151.55,0.0001227,2]
[326890605,1715545835024,-151.55,0.0001227,2]
[326890606,1715545835033,-151.55,0.0001227,2]
[326890607,1715545835043,-151.55,0.0001227,2]
[326890608,1715545835052,-151.55,0.0001227,2]
[326890609,1715545835061,-151.55,0.0001227,2]
[326890610,1715545835071,-151.55,0.0001227,2]
[326890611,1715545835080,-151.55,0.0001227,2]
[326890612,1715545835090,-151.55,0.0001227,2]
[326890613,1715545835099,-151.55,0.0001227,2]
[326890614,1715545835108,-151.55,0.0001227,2]
[326890615,1715545835118,-151.55,0.0001227,2]
[326890616,1715545835129,-151.55,0.0001227,2]
[326890617,1715545835140,-151.55,0.0001227,2]
[326890618,1715545835152,-151.55,0.0001227,2]
[326890619,1715545835161,-151.55,0.0001227,2]
[326890620,1715545835171,-151.55,0.0001227,2]
[326890621,1715545835182,-151.55,0.0001227,2]
[326890622,1715545835192,-151.55,0.0001227,2]
[326890623,1715545835202,-151.55,0.0001227,2]
[326890624,1715545835212,-151.55,0.0001227,2]
[326890625,1715545835223,-151.55,0.0001227,2]
[326890626,1715545835233,-151.55,0.0001227,2]
[326890627,1715545835242,-151.55,0.0001227,2]
[326890628,1715545835252,-151.55,0.0001227,2]
[326890629,1715545835262,-151.55,0.0001227,2]
[326890630,1715545835272,-151.55,0.0001227,2]
[326890631,1715545835282,-151.55,0.0001227,2]
[326890632,1715545835292,-151.55,0.0001227,2]
[326890633,1715545835302,-151.55,0.0001227,2]
[326890634,1715545835312,-151.55,0.0001227,2]
[326890635,1715545835322,-151.55,0.0001227,2]
[326890636,1715545835332,-151.55,0.0001227,2]
[326890637,1715545835342,-151.55,0.0001227,2]
[326890638,1715545835351,-151.55,0.0001227,2]
[326890639,1715545835360,-151.55,0.0001227,2]
[326890640,1715545835370,-151.55,0.0001227,2]
[326890641,1715545835381,-151.55,0.0001227,2]
[326890642,1715545835390,-151.55,0.0001227,2]
[326890643,1715545835400,-151.55,0.0001227,2]
[326890644,1715545835410,-151.55,0.0001227,2]
[326890645,1715545835419,-151.55,0.0001227,2]
[326890646,1715545835429,-151.55,0.0001227,2]
[326890647,1715545835438,-151.55,0.0001227,2]
[326890648,1715545835448,-151.55,0.0001227,2]
[326890649,1715545835458,-213.07,0.0001227,2]
[326890650,1715545835468,-213.07,0.0001227,2]
[326890651,1715545835477,-213.07,0.0001227,2]
[326890652,1715545835487,-213.07,0.0001227,2]
[326890653,1715545835496,-213.07,0.0001227,2]
[326890654,1715545835506,-213.07,0.0001227,2]
[326890655,1715545835515,-183.05942095,0.0001227,2]
[326890656,1715545835525,-150.0,0.00012272,2]
[326890657,1715545835535,-1500.0,0.00012273,2]
[326890658,1715545835545,-150.0,0.00012274,2]
[326890659,1715545835554,-1500.0,0.00012275,2]
[326890660,1715545835564,-150.0,0.00012277,2]
[326890661,1715545835574,-300.0,0.00012278,2]
[326890662,1715545835583,-233.01126648,0.00012278,2]
[326890663,1715545835592,-166.33678538,0.00012278,2]
[326890664,1715545835602,-196.30689344,0.00012278,2]
[326890665,1715545835612,-208.09506544,0.00012278,2]
[326890666,1715545835621,-155.49951612,0.00012278,2]
[326890667,1715545835633,-666.9861521,0.00012278,2]
[326890668,1715545835643,-4393.04526747,0.00012278,2]
[326890669,1715545835652,-167.63437116,0.00012278,2]
[326890670,1715545835662,-156.14861523,0.00012278,2]
[326890671,1715545835672,-327.66368392,0.00012278,2]
[326890672,1715545835682,-284.54699808,0.00012278,2]
[326890673,1715545835691,-3084.06366256,0.00012278,2]
[326890674,1715545835700,-4988.47691133,0.00012278,2]
[326890675,1715545835710,-529.20718459,0.00012278,2]
[326890676,1715545835719,-482.82729485,0.00012278,2]
[326890677,1715545835729,-305.95729831,0.00012278,2]
[326890678,1715545835738,-1004.89603037,0.00012278,2]
[326890679,1715545835748,-235.75592062,0.00012278,2]
[326890680,1715545835758,-155.0,0.00012278,2]
[326890681,1715545835768,-710.94730096,0.00012278,2]
[326890682,1715545835778,-414.31523985,0.00012278,2]
[326890683,1715545835788,-303.44648221,0.00012278,2]
[326890684,1715545835798,-161.70173608,0.00012278,2]
[326890685,1715545835808,-291.25263781,0.00012278,2]
[326890686,1715545835817,-156.663,0.00012278,2]
[326890687,1715545835828,-186.21914621,0.00012278,2]
[326890688,1715545835837,-155.0,0.00012278,2]
[326890689,1715545835847,-283.44852378,0.00012278,2]
[326890690,1715545835857,-441.4070949,0.00012278,2]
[326890691,1715545835866,-155.25533383,0.00012278,2]
[326890692,1715545835876,-155.58162898,0.00012278,2]
[326890693,1715545835886,-571.91938651,0.00012278,7]
[326890694,1715545835895,-5804.78138713,0.00012278,2]
[326890695,1715545835905,-194.91067943,0.00012278,2]
[326890696,1715545835915,-502.95479753,0.00012278,2]
[326890697,1715545835925,-155.0,0.00012278,2]
[326890698,1715545835935,-187.71310779,0.00012278,2]
[326890699,1715545835946,-229.09014691,0.00012278,2]
[326890700,1715545835956,-284.03376722,0.00012278,2]
[326890701,1715545835966,-404.94691302,0.00012278,2]
[326890702,1715545835976,-278.45769739,0.00012278,2]
[326890703,1715545835985,-392.43718635,0.00012278,2]
[326890704,1715545835995,-7003.42850058,0.00012278,2]
[326890705,1715545836010,-547.43728168,0.00012278,2]
[326890706,1715545836021,-558.15546194,0.00012278,2]
[326890707,1715545836033,-715.0606495,0.00012278,2]
[326890708,1715545836043,-551.54110957,0.00012278,2]
[326890709,1715545836054,-699.95004313,0.00012278,2]
[326890710,1715545836066,-248.5088473,0.00012278,2]
[326890711,1715545836075,-393.8888939,0.00012278,2]
[326890712,1715545836087,-912.73397206,0.00012278,2]
[326890713,1715545836096,-1084.11609725,0.00012278,2]
[326890714,1715545836106,-910.32345355,0.00012279,2]
[326890715,1715545836116,-2704.39974945,0.0001228,2]
[326890716,1715545836127,-6808.3479369,0.0001228,2]
[326890717,1715545836140,-1033.7,0.0001228,2]
[326890718,1715545836152,-27191.22599672,0.0001228,2]
[326890719,1715545836183,-1812.60145938,0.0001228,2]
[326890720,1715545836195,-456.22198162,0.0001228,2]
[326890721,1715545836206,-95916.65800476,0.0001228,2]
[326890722,1715545836219,-339.04706187,0.0001228,2]
[326890723,1715545836230,-903.55095595,0.0001228,2]
[326890724,1715545836241,-518.40021227,0.0001228,2]
[326890725,1715545836252,-4121.07153573,0.0001228,2]
[326890726,1715545836264,-11373.03455129,0.0001228,2]
[326890727,1715545836275,-1438.40882084,0.0001228,2]
[326890728,1715545836287,-988.48359335,0.0001228,2]
[326890729,1715545836298,-18689.70909248,0.0001228,2]
[326890730,1715545836310,-60182.91882332,0.0001228,2]
[326890731,1715545836321,-3990.39052706,0.0001228,2]
[326890761,1715545838163,-311.87457916,0.00010492,2]
[326890763,1715545838172,-727.0,0.00012212,2]
[326890764,1715545838183,-843.6319978,0.0001228,2]
[326890765,1715545838610,-162245.83089763,0.0001228,2]
[326890766,1715545838619,-370221.30232903,0.0001228,2]
[326890767,1715545838632,-807945.58222564,0.0001228,2]
[326890768,1715545838643,-5065.88144231,0.0001228,2]
[326890796,1715545839658,-287766.19241998,0.0001228,2]
[326890811,1715545839836,-25661.95515799,0.0001228,2]
[326890813,1715545839849,-625.10208399,0.0001228,2]
[326890820,1715545839901,-287873.32682808,0.0001228,2]
[326890827,1715545840082,-15228.74999999,0.0001228,2]
[326890843,1715545842806,-914997.47811832,0.0001228,2]
[326890844,1715545842937,-304.058755,0.0001228,2]
[326890867,1715545845651,-157.80344382,0.00012279,2]
[326890869,1715545845660,-195.84722877,0.00012279,2]
[326890871,1715545845669,-163173.96767641,0.0001228,2]
[326890872,1715545845766,-585.22668101,0.0001228,2]
[326890873,1715545845797,-415.7195867,0.0001228,2]
[326890874,1715545845810,-1218.34,0.0001228,2]
[326890875,1715545845822,-2055.95637963,0.0001228,2]
[326890876,1715545845846,-253.63498576,0.0001228,2]
[326890926,1715546587426,2319.95306577,9.21e-05,2]
[326890927,1715546592710,278.47295826,9.824e-05,2]
[326890928,1715546616119,3909.23950237,9.824e-05,2]
[326890932,1715546761593,150.53,8.752e-05,2]
[326891035,1715547031839,-1000.0,0.00010496,2]
[326891036,1715547031848,-201.56,0.0001059,2]
[326891037,1715547031858,-1463.56519538,0.00010934,2]
[326891038,1715547031917,-36.43480462,0.00010934,2]
[326891039,1715547031927,-612.01523138,0.00010938,2]
[326891040,1715547032005,-1868.00476862,0.00010938,2]
[326891041,1715547032014,-153.0,0.00010938,2]
[326891042,1715547032023,-250.0,0.00010939,2]
[326891043,1715547032033,-147.13613138,0.00010946,2]
[326891044,1715547032044,-5.86386862,0.00010946,2]
[326891045,1715547032054,-153.0,0.00010954,2]
[326891046,1715547032063,-591.13613138,0.00010959,3]
[326891047,1715547032157,-1408.86386862,0.00010959,3]
[326891048,1715547032166,-552.28,0.00010959,2]
[326891050,1715547032175,-153.0,0.00010962,2]
[326891052,1715547032184,-150.0,0.00010969,2]
[326891053,1715547032194,-153.0,0.0001097,2]
[326891055,1715547032203,-625.93,0.0001097,2]
[326891057,1715547032212,-153.0,0.00010977,2]
[326891059,1715547032222,-153.0,0.00010985,2]
[326891061,1715547032231,-153.0,0.00010993,2]
[326891064,1715547032241,-336.79,0.00011019,2]
[326891066,1715547032252,-3080.5,0.00011028,2]
[326891068,1715547032261,-177.04,0.00011048,2]
[326891069,1715547032270,-741.15023284,0.00011133,2]
[326891077,1715547037834,-311.87457916,0.00010495,2]
[326891078,1715547037845,-7.20242084,0.00011133,2]
[326891079,1715547037856,-3251.64734632,0.00011133,2]
[326891080,1715547037866,-499.99,0.00011133,2]
[326891081,1715547037877,-206.47,0.00011176,2]
[326891082,1715547037887,-500.0,0.00011328,2]
[326891083,1715547037896,-500.0,0.00011328,2]
[326891084,1715547037906,-500.0,0.00011328,2]
[326891085,1715547037915,-478.41,0.00011328,2]
[326891086,1715547037926,-500.0,0.00011328,2]
[326891087,1715547037936,-500.0,0.00011328,2]
[326891088,1715547037945,-500.0,0.00011328,2]
[326891089,1715547037955,-500.0,0.00011328,2]
[326891090,1715547037964,-500.0,0.00011328,2]
[326891091,1715547037974,-500.0,0.00011328,2]
[326891092,1715547037983,-435.0,0.00011328,2]
[326891093,1715547037992,-176.56,0.00011494,2]
[326891094,1715547038002,-1000.0,0.00011808,2]
[326891095,1715547038011,-662.34,0.00011853,2]
[326891096,1715547038021,-367.8616,0.00011853,2]
[326891097,1715547038030,-2051.2739,0.00011853,2]
[326891098,1715547038040,-1071.84695952,0.00011952,3]
[326891099,1715547038049,-32604.0,0.00011952,2]
[326891100,1715547038058,-133440.22319838,0.00011953,2]
[326891101,1715547038092,-56583.46410162,0.00011953,2]
[326891102,1715547038101,-500.0,0.00011996,2]
[326891103,1715547038111,-15001.4927812,0.00012,2]
[326891104,1715547038120,-1000.0,0.00012,2]
[326891105,1715547038129,-1560.31430929,0.00012016,2]
[326891106,1715547038138,-3502.08126514,0.0001205,2]
[326891107,1715547038147,-1500.0,0.00012084,2]
[326891108,1715547038157,-150.0,0.00012096,2]
[326891109,1715547038166,-1000.0,0.000121,2]
[326891110,1715547038175,-150.0,0.00012107,2]
[326891111,1715547038184,-1500.0,0.00012128,2]
[326891112,1715547038193,-150.0,0.00012139,2]
[326891113,1715547038202,-1634.29349,0.0001216,2]
[326891114,1715547038211,-150.0,0.00012163,2]
[326891116,1715547038220,-150.0,0.00012167,2]
[326891117,1715547038229,-150.0,0.00012169,2]
[326891118,1715547038239,-1500.0,0.00012179,2]
[326891119,1715547038248,-191.09479659,0.0001218,2]
[326891120,1715547038257,-9481.9395,0.0001218,2]
[326891121,1715547038267,-44685.0377,0.0001218,2]
[326891122,1715547038276,-4012.8059,0.0001218,2]
[326891123,1715547038285,-1886.4044,0.0001218,2]
[326891124,1715547038294,-233.26598944,0.0001218,2]
[326891125,1715547038573,-528.8047,0.0001218,2]
[326891126,1715547038587,-168.84247966,0.0001218,2]
[326891127,1715547038598,-1594.2422,0.0001218,2]
[326891128,1715547038607,-500.0,0.00012182,2]
[326891129,1715547038617,-233.26598937,0.00012184,2]
[326891130,1715547038627,-233.26598937,0.00012189,2]
[326891131,1715547038635,-233.26598937,0.00012193,2]
[326891132,1715547038645,-150.0,0.00012195,2]
[326891133,1715547038654,-233.26598937,0.00012197,2]
[326891134,1715547038666,-200.0,0.00012198,2]
[326891135,1715547038675,-233.26598937,0.00012202,2]
[326891136,1715547038684,-150.0,0.00012203,2]
[326891137,1715547038693,-1000.0,0.00012206,2]
[326891138,1715547038702,-500.0,0.00012206,2]
[326891139,1715547038712,-300.0,0.00012206,2]
[326891140,1715547038725,-233.26598937,0.00012206,2]
[326891141,1715547038735,-233.26598937,0.00012211,2]
[326891142,1715547038744,-1500.0,0.00012212,2]
[326891143,1715547038753,-233.26598937,0.00012215,2]
[326891144,1715547038762,-233.26598937,0.00012219,2]
[326891145,1715547038771,-233.26598937,0.00012224,2]
[326891146,1715547038780,-233.26598937,0.00012228,2]
[326891147,1715547038790,-1000.0,0.00012228,2]
[326891148,1715547038799,-500.0,0.00012228,2]
[326891149,1715547038808,-150.0,0.00012256,2]
[326891150,1715547038817,-150.0,0.00012262,2]
[326891151,1715547038826,-1500.0,0.00012274,2]
[326891152,1715547038836,-206.72782476,0.00012278,2]
[326891153,1715547038845,-2184.28099016,0.00012278,2]
[326891154,1715547038854,-150.0,0.00012278,2]
[326891155,1715547038863,-522.84487724,0.00012279,2]
[326891156,1715547038872,-2219.88737187,0.00012279,2]
[326891157,1715547038882,-658.0,0.0001228,2]
[326891158,1715547038891,-367395.38266662,0.0001228,2]
[326891159,1715547038903,-25231.07030172,0.0001228,2]
[326891160,1715547038914,-782714.51192392,0.0001228,2]
[326891161,1715547040249,-1451.8542977,0.0001228,2]